[Event "Titled Tuesday Blitz November 9 2021"]
[White "Taboas Rodriguez, Daniel"]
[Black "Sorokin, Aleksey"]
[WhiteFideId "2208466"]
[BlackFideId "24176460"]
[WhiteElo "2429"]
[BlackElo "2476"]
[Result "1/2-1/2"]
[Round "02"]
[TimeControl "180+1"]
[Date "2021.11.09"]
[WhiteClock "0:01:51"]
[BlackClock "0:02:08"]

1. d4 {[%clk 0:02:59]}  Nf6 {[%clk 0:02:59]} 2. Nf3 {[%clk 0:02:57]}  g6 {[%clk 0:02:59]} 3. c4 {[%clk 0:02:58]}  Bg7 {[%clk 0:02:59]} 4. Nc3 {[%clk 0:02:58]}  d5 {[%clk 0:02:59]} 5. cxd5 {[%clk 0:02:59]}  Nxd5 {[%clk 0:02:59]} 6. e4 {[%clk 0:03:00]}  Nxc3 {[%clk 0:02:59]} 7. bxc3 {[%clk 0:03:01]}  c5 {[%clk 0:02:59]} 8. Be3 {[%clk 0:03:01]}  Qa5 {[%clk 0:02:59]} 9. Qd2 {[%clk 0:03:01]}  Nc6 {[%clk 0:02:59]} 10. Rc1 {[%clk 0:03:01]}  cxd4 {[%clk 0:02:59]} 11. cxd4 {[%clk 0:03:02]}  Qxd2+ {[%clk 0:02:59]} 12. Kxd2 {[%clk 0:03:02]}  O-O {[%clk 0:03:00]} 13. d5 {[%clk 0:03:03]}  Rd8 {[%clk 0:02:58]} 14. Ke1 {[%clk 0:03:03]}  Na5 {[%clk 0:02:58]} 15. Bg5 {[%clk 0:03:03]}  Bd7 {[%clk 0:02:52]} 16. Bd3 {[%clk 0:03:03]}  Rdc8 {[%clk 0:02:49]} 17. Ke2 {[%clk 0:03:03]}  e6 {[%clk 0:02:49]} 18. Rxc8+ {[%clk 0:03:03]}  Rxc8 {[%clk 0:02:48]} 19. Rc1 {[%clk 0:03:04]}  Rxc1 {[%clk 0:02:44]} 20. Bxc1 {[%clk 0:03:04]}  exd5 {[%clk 0:02:45]} 21. exd5 {[%clk 0:03:04]}  b6 {[%clk 0:02:45]} 22. Bf4 {[%clk 0:03:03]}  b5 {[%clk 0:02:29]} 23. Ne5 {[%clk 0:03:02]}  Bxe5 {[%clk 0:02:24]} 24. Bxe5 {[%clk 0:03:02]}  Kf8 {[%clk 0:02:25]} 25. Ke3 {[%clk 0:02:59]}  Nc4+ {[%clk 0:02:23]} 26. Kd4 {[%clk 0:02:23]}  Ke7 {[%clk 0:02:09]} 27. Bxc4 {[%clk 0:02:17]}  bxc4 {[%clk 0:02:10]} 28. Kxc4 {[%clk 0:02:17]}  a6 {[%clk 0:02:10]} 29. Kc5 {[%clk 0:02:15]}  Bb5 {[%clk 0:02:10]} 30. g3 {[%clk 0:02:14]}  Kd7 {[%clk 0:02:10]} 31. Bf6 {[%clk 0:02:11]}  h5 {[%clk 0:02:10]} 32. a3 {[%clk 0:02:08]}  Bf1 {[%clk 0:02:10]} 33. Kd4 {[%clk 0:02:08]}  Bg2 {[%clk 0:02:10]} 34. Ke5 {[%clk 0:02:09]}  Bf1 {[%clk 0:02:09]} 35. Bg5 {[%clk 0:02:09]}  Bc4 {[%clk 0:02:09]} 36. Bd2 {[%clk 0:02:09]}  Bb3 {[%clk 0:02:09]} 37. Bb4 {[%clk 0:02:10]}  Ba2 {[%clk 0:02:10]} 38. d6 {[%clk 0:02:10]}  Bb3 {[%clk 0:02:09]} 39. Kf6 {[%clk 0:02:11]}  Ke8 {[%clk 0:02:07]} 40. f4 {[%clk 0:02:10]}  Be6 {[%clk 0:02:04]} 41. a4 {[%clk 0:02:00]}  Bd7 {[%clk 0:02:03]} 42. a5 {[%clk 0:02:00]}  Be6 {[%clk 0:02:03]} 43. Bc5 {[%clk 0:02:00]}  Bd7 {[%clk 0:02:03]} 44. Kg5 {[%clk 0:01:56]}  Be6 {[%clk 0:02:03]} 45. Kh4 {[%clk 0:01:56]}  Kd7 {[%clk 0:02:03]} 46. h3 {[%clk 0:01:56]}  Ke8 {[%clk 0:02:02]} 47. g4 {[%clk 0:01:56]}  hxg4 {[%clk 0:02:03]} 48. hxg4 {[%clk 0:01:57]}  Kd7 {[%clk 0:02:03]} 49. Kg5 {[%clk 0:01:57]}  Ke8 {[%clk 0:02:03]} 50. f5 {[%clk 0:01:58]}  gxf5 {[%clk 0:02:03]} 51. gxf5 {[%clk 0:01:58]}  Bb3 {[%clk 0:02:03]} 52. Kf6 {[%clk 0:01:59]}  Kd7 {[%clk 0:02:04]} 53. Bb4 {[%clk 0:01:58]}  Ba2 {[%clk 0:02:04]} 54. Ba3 {[%clk 0:01:57]}  Bb3 {[%clk 0:02:05]} 55. Ke5 {[%clk 0:01:56]}  Ba2 {[%clk 0:02:06]} 56. Kd4 {[%clk 0:01:55]}  Bb1 {[%clk 0:02:06]} 57. Ke5 {[%clk 0:01:53]}  Ba2 {[%clk 0:02:06]} 58. Bb4 {[%clk 0:01:53]}  Bb3 {[%clk 0:02:07]} 59. Ba3 {[%clk 0:01:51]}  Ba2 {[%clk 0:02:08]} 1/2-1/2


[Site "https://www.chess.com"]

[Event "Titled Tuesday Blitz November 9 2021"]
[White "Yi, Richard"]
[Black "Bortnyk, Olexandr"]
[WhiteFideId "2079518"]
[BlackFideId "14120828"]
[WhiteElo "2604"]
[BlackElo "2723"]
[Result "0-1"]
[Round "02"]
[TimeControl "180+1"]
[Date "2021.11.09"]
[WhiteClock "0:00:03"]
[BlackClock "0:00:53"]

1. d4 {[%clk 0:03:00]}  Nf6 {[%clk 0:02:54]} 2. c4 {[%clk 0:03:01]}  d6 {[%clk 0:02:49]} 3. Nc3 {[%clk 0:03:01]}  g6 {[%clk 0:02:49]} 4. e4 {[%clk 0:03:02]}  Bg7 {[%clk 0:02:50]} 5. f3 {[%clk 0:03:02]}  O-O {[%clk 0:02:50]} 6. Bg5 {[%clk 0:03:03]}  c6 {[%clk 0:02:50]} 7. Qd2 {[%clk 0:03:01]}  Re8 {[%clk 0:02:50]} 8. Bd3 {[%clk 0:02:57]}  Na6 {[%clk 0:02:49]} 9. Nge2 {[%clk 0:02:46]}  e5 {[%clk 0:02:48]} 10. d5 {[%clk 0:02:46]}  Nc5 {[%clk 0:02:48]} 11. Bc2 {[%clk 0:02:45]}  a5 {[%clk 0:02:46]} 12. g4 {[%clk 0:02:30]}  Qb6 {[%clk 0:02:43]} 13. O-O-O {[%clk 0:02:17]}  Qa6 {[%clk 0:02:36]} 14. dxc6 {[%clk 0:02:09]}  bxc6 {[%clk 0:02:28]} 15. Qxd6 {[%clk 0:02:04]}  Ne6 {[%clk 0:02:20]} 16. Be3 {[%clk 0:01:56]}  Qxc4 {[%clk 0:02:16]} 17. Bd3 {[%clk 0:01:38]}  Qb4 {[%clk 0:02:12]} 18. Qxc6 {[%clk 0:01:38]}  Bd7 {[%clk 0:01:56]} 19. Qb6 {[%clk 0:01:35]}  Reb8 {[%clk 0:01:45]} 20. Qxb4 {[%clk 0:01:10]}  axb4 {[%clk 0:01:46]} 21. Nd5 {[%clk 0:00:57]}  Rxa2 {[%clk 0:01:47]} 22. Bc4 {[%clk 0:00:47]}  b3 {[%clk 0:01:37]} 23. Kb1 {[%clk 0:00:35]}  Nxd5 {[%clk 0:01:32]} 24. exd5 {[%clk 0:00:29]}  Nf4 {[%clk 0:01:27]} 25. Bxb3 {[%clk 0:00:25]}  Rxb3 {[%clk 0:01:23]} 26. Kxa2 {[%clk 0:00:23]}  Rxe3 {[%clk 0:01:23]} 27. Nxf4 {[%clk 0:00:15]}  exf4 {[%clk 0:01:24]} 28. Rhe1 {[%clk 0:00:15]}  Rxf3 {[%clk 0:01:20]} 29. Re7 {[%clk 0:00:09]}  Ba4 {[%clk 0:01:20]} 30. Rd2 {[%clk 0:00:07]}  Bb3+ {[%clk 0:01:20]} 31. Ka3 {[%clk 0:00:04]}  Bxd5+ {[%clk 0:01:10]} 32. Ka4 {[%clk 0:00:04]}  Bb3+ {[%clk 0:01:03]} 33. Ka5 {[%clk 0:00:05]}  Bf6 {[%clk 0:01:02]} 34. Rb7 {[%clk 0:00:05]}  Be6 {[%clk 0:00:58]} 35. b4 {[%clk 0:00:05]}  Ra3+ {[%clk 0:00:57]} 36. Kb5 {[%clk 0:00:04]}  f3 {[%clk 0:00:57]} 37. Rf2 {[%clk 0:00:03]}  Bxg4 {[%clk 0:00:52]} 38. Kc6 {[%clk 0:00:03]}  Bh4 {[%clk 0:00:49]} 39. Rf1 {[%clk 0:00:03]}  Bh3 {[%clk 0:00:50]} 40. Rc1 {[%clk 0:00:02]}  f2 {[%clk 0:00:50]} 41. b5 {[%clk 0:00:01]}  f1=Q {[%clk 0:00:50]} 42. Rxf1 {[%clk 0:00:01]}  Bxf1 {[%clk 0:00:51]} 43. b6 {[%clk 0:00:01]}  Bg2+ {[%clk 0:00:52]} 44. Kc7 {[%clk 0:00:02]}  Bxb7 {[%clk 0:00:53]} 45. Kxb7 {[%clk 0:00:03]} 0-1


[Site "https://www.chess.com"]

[Event "Titled Tuesday Blitz November 9 2021"]
[White "Zubov, Alexander"]
[Black "Yashmetov, Mikhail"]
[WhiteFideId "14109409"]
[BlackFideId "24198900"]
[WhiteElo "2685"]
[BlackElo "2305"]
[Result "1-0"]
[Round "02"]
[TimeControl "180+1"]
[Date "2021.11.09"]
[WhiteClock "0:00:43"]
[BlackClock "0:00:12"]

1. d4 {[%clk 0:02:36]}  Nf6 {[%clk 0:02:58]} 2. c4 {[%clk 0:02:35]}  g6 {[%clk 0:02:59]} 3. Nc3 {[%clk 0:02:35]}  d5 {[%clk 0:02:56]} 4. e3 {[%clk 0:02:33]}  Bg7 {[%clk 0:02:56]} 5. Qb3 {[%clk 0:02:33]}  dxc4 {[%clk 0:02:50]} 6. Bxc4 {[%clk 0:02:32]}  O-O {[%clk 0:02:50]} 7. Nf3 {[%clk 0:02:32]}  c5 {[%clk 0:02:50]} 8. d5 {[%clk 0:02:31]}  Nbd7 {[%clk 0:02:41]} 9. e4 {[%clk 0:02:29]}  Ng4 {[%clk 0:02:40]} 10. O-O {[%clk 0:02:26]}  Nde5 {[%clk 0:02:38]} 11. Nxe5 {[%clk 0:02:24]}  Nxe5 {[%clk 0:02:33]} 12. Be2 {[%clk 0:02:23]}  a6 {[%clk 0:02:30]} 13. a4 {[%clk 0:02:16]}  Qc7 {[%clk 0:02:27]} 14. Be3 {[%clk 0:02:08]}  Ng4 {[%clk 0:02:24]} 15. Bxg4 {[%clk 0:02:08]}  Bxg4 {[%clk 0:02:25]} 16. a5 {[%clk 0:01:54]}  Rac8 {[%clk 0:01:42]} 17. h3 {[%clk 0:01:49]}  Bd7 {[%clk 0:01:39]} 18. Rfd1 {[%clk 0:01:48]}  Kh8 {[%clk 0:01:33]} 19. f4 {[%clk 0:01:42]}  f5 {[%clk 0:01:00]} 20. e5 {[%clk 0:01:40]}  g5 {[%clk 0:01:00]} 21. Re1 {[%clk 0:01:26]}  gxf4 {[%clk 0:00:36]} 22. Bxf4 {[%clk 0:01:26]}  e6 {[%clk 0:00:37]} 23. dxe6 {[%clk 0:01:14]}  Bc6 {[%clk 0:00:37]} 24. Nd5 {[%clk 0:01:05]}  Bxd5 {[%clk 0:00:28]} 25. Qxd5 {[%clk 0:01:04]}  Rfd8 {[%clk 0:00:28]} 26. Qf3 {[%clk 0:01:01]}  Re8 {[%clk 0:00:24]} 27. Qd3 {[%clk 0:00:59]}  Rxe6 {[%clk 0:00:21]} 28. Qxf5 {[%clk 0:00:58]}  Qe7 {[%clk 0:00:22]} 29. Rad1 {[%clk 0:00:54]}  Rf8 {[%clk 0:00:20]} 30. Qe4 {[%clk 0:00:54]}  Qh4 {[%clk 0:00:17]} 31. Bh2 {[%clk 0:00:53]}  Qf2+ {[%clk 0:00:17]} 32. Kh1 {[%clk 0:00:53]}  Rg6 {[%clk 0:00:18]} 33. Re2 {[%clk 0:00:50]}  Qf7 {[%clk 0:00:16]} 34. e6 {[%clk 0:00:46]}  Qe7 {[%clk 0:00:16]} 35. Bd6 {[%clk 0:00:44]}  Qd8 {[%clk 0:00:12]} 36. e7 {[%clk 0:00:44]}  Rxd6 {[%clk 0:00:12]} 37. exd8=Q {[%clk 0:00:43]} 1-0


[Site "https://www.chess.com"]

[Event "Titled Tuesday Blitz November 9 2021"]
[White "Atakishiyev, Elmar"]
[Black "Martinez Alcantara, Jose Eduardo"]
[WhiteFideId "13410547"]
[BlackFideId "3805662"]
[WhiteElo "2088"]
[BlackElo "2690"]
[Result "1-0"]
[Round "03"]
[TimeControl "180+1"]
[Date "2021.11.09"]
[WhiteClock "0:00:10"]
[BlackClock "0:00:08"]

1. e4 {[%clk 0:03:00]}  c5 {[%clk 0:02:59]} 2. Nf3 {[%clk 0:03:00]}  d6 {[%clk 0:03:00]} 3. d4 {[%clk 0:02:58]}  cxd4 {[%clk 0:03:01]} 4. Nxd4 {[%clk 0:02:59]}  Nf6 {[%clk 0:03:00]} 5. Nc3 {[%clk 0:02:59]}  a6 {[%clk 0:03:01]} 6. Bg5 {[%clk 0:02:58]}  e6 {[%clk 0:03:01]} 7. f4 {[%clk 0:02:59]}  Be7 {[%clk 0:03:02]} 8. Qf3 {[%clk 0:02:56]}  Qc7 {[%clk 0:03:03]} 9. O-O-O {[%clk 0:02:56]}  Nbd7 {[%clk 0:03:03]} 10. g4 {[%clk 0:02:56]}  h6 {[%clk 0:03:03]} 11. Bxf6 {[%clk 0:02:50]}  Bxf6 {[%clk 0:03:04]} 12. h4 {[%clk 0:02:47]}  Qb6 {[%clk 0:03:04]} 13. Nb3 {[%clk 0:02:45]}  Be7 {[%clk 0:02:54]} 14. g5 {[%clk 0:02:43]}  Nc5 {[%clk 0:02:34]} 15. Kb1 {[%clk 0:02:28]}  Bd7 {[%clk 0:02:33]} 16. Bh3 {[%clk 0:02:23]}  O-O-O {[%clk 0:02:31]} 17. Rhg1 {[%clk 0:02:08]}  hxg5 {[%clk 0:02:29]} 18. hxg5 {[%clk 0:02:07]}  Kb8 {[%clk 0:02:07]} 19. g6 {[%clk 0:02:05]}  fxg6 {[%clk 0:02:08]} 20. Rxg6 {[%clk 0:02:02]}  Bf6 {[%clk 0:02:07]} 21. Bg2 {[%clk 0:01:47]}  Bc6 {[%clk 0:02:01]} 22. Qe3 {[%clk 0:01:36]}  Na4 {[%clk 0:01:44]} 23. Qxb6 {[%clk 0:01:30]}  Nxb6 {[%clk 0:01:45]} 24. Nd4 {[%clk 0:01:26]}  Bd7 {[%clk 0:01:37]} 25. f5 {[%clk 0:01:18]}  exf5 {[%clk 0:01:25]} 26. Nxf5 {[%clk 0:01:08]}  Nc4 {[%clk 0:01:15]} 27. Nd5 {[%clk 0:00:59]}  Be5 {[%clk 0:00:44]} 28. b3 {[%clk 0:00:48]}  Na3+ {[%clk 0:00:41]} 29. Kc1 {[%clk 0:00:48]}  Be8 {[%clk 0:00:30]} 30. Re6 {[%clk 0:00:40]}  g6 {[%clk 0:00:23]} 31. Nfe3 {[%clk 0:00:28]}  Rh2 {[%clk 0:00:23]} 32. Rd2 {[%clk 0:00:26]}  g5 {[%clk 0:00:20]} 33. Ng4 {[%clk 0:00:22]}  Bd7 {[%clk 0:00:14]} 34. Rxe5 {[%clk 0:00:19]}  Bxg4 {[%clk 0:00:12]} 35. Rxg5 {[%clk 0:00:19]}  Be6 {[%clk 0:00:12]} 36. c4 {[%clk 0:00:19]}  b5 {[%clk 0:00:04]} 37. Kb2 {[%clk 0:00:16]}  Bxd5 {[%clk 0:00:05]} 38. Rgxd5 {[%clk 0:00:13]}  b4 {[%clk 0:00:06]} 39. e5 {[%clk 0:00:12]}  Rh5 {[%clk 0:00:05]} 40. exd6 {[%clk 0:00:12]}  Rxd5 {[%clk 0:00:06]} 41. Rxd5 {[%clk 0:00:12]}  Rf8 {[%clk 0:00:06]} 42. Rd2 {[%clk 0:00:12]}  Kc8 {[%clk 0:00:07]} 43. Bc6 {[%clk 0:00:12]}  Rf5 {[%clk 0:00:06]} 44. Re2 {[%clk 0:00:11]}  Rf8 {[%clk 0:00:05]} 45. c5 {[%clk 0:00:11]}  Kd8 {[%clk 0:00:05]} 46. Rh2 {[%clk 0:00:07]}  Nb5 {[%clk 0:00:05]} 47. Bxb5 {[%clk 0:00:07]}  axb5 {[%clk 0:00:06]} 48. c6 {[%clk 0:00:07]}  Kc8 {[%clk 0:00:06]} 49. Rh7 {[%clk 0:00:07]}  Rd8 {[%clk 0:00:06]} 50. Rc7+ {[%clk 0:00:07]}  Kb8 {[%clk 0:00:07]} 51. Rb7+ {[%clk 0:00:07]}  Ka8 {[%clk 0:00:07]} 52. d7 {[%clk 0:00:08]}  Rf8 {[%clk 0:00:04]} 53. Rc7 {[%clk 0:00:08]}  Rf2+ {[%clk 0:00:04]} 54. Kc1 {[%clk 0:00:08]}  Rf1+ {[%clk 0:00:03]} 55. Kd2 {[%clk 0:00:08]}  Rf2+ {[%clk 0:00:02]} 56. Ke3 {[%clk 0:00:08]}  Rf8 {[%clk 0:00:01]} 57. Rc8+ {[%clk 0:00:08]}  Ka7 {[%clk 0:00:02]} 58. Rxf8 {[%clk 0:00:08]}  Kb6 {[%clk 0:00:03]} 59. Rb8+ {[%clk 0:00:08]}  Ka6 {[%clk 0:00:04]} 60. Ra8+ {[%clk 0:00:09]}  Kb6 {[%clk 0:00:04]} 61. d8=Q+ {[%clk 0:00:09]}  Kc5 {[%clk 0:00:05]} 62. Qd4+ {[%clk 0:00:09]}  Kxc6 {[%clk 0:00:05]} 63. Rc8+ {[%clk 0:00:09]}  Kb7 {[%clk 0:00:06]} 64. Qd7+ {[%clk 0:00:09]}  Kb6 {[%clk 0:00:07]} 65. Rc6+ {[%clk 0:00:09]}  Ka5 {[%clk 0:00:08]} 66. Qa7# {[%clk 0:00:10]} 1-0


[Site "https://www.chess.com"]

[Event "Titled Tuesday Blitz November 9 2021"]
[White "Babazada, Khazar"]
[Black "Kadam, Om Manish"]
[WhiteFideId "13413554"]
[BlackFideId "45076294"]
[WhiteElo "2302"]
[BlackElo "1729"]
[Result "1-0"]
[Round "03"]
[TimeControl "180+1"]
[Date "2021.11.09"]
[WhiteClock "0:00:16"]
[BlackClock "0:00:21"]

1. e4 {[%clk 0:03:00]}  c6 {[%clk 0:02:59]} 2. d4 {[%clk 0:03:00]}  d5 {[%clk 0:02:58]} 3. Nc3 {[%clk 0:03:00]}  dxe4 {[%clk 0:02:58]} 4. Nxe4 {[%clk 0:02:59]}  Bf5 {[%clk 0:02:58]} 5. Ng3 {[%clk 0:02:59]}  Bg6 {[%clk 0:02:59]} 6. Nf3 {[%clk 0:02:59]}  e6 {[%clk 0:02:58]} 7. h4 {[%clk 0:02:59]}  h6 {[%clk 0:02:58]} 8. h5 {[%clk 0:02:59]}  Bh7 {[%clk 0:02:58]} 9. Bd3 {[%clk 0:03:00]}  Bxd3 {[%clk 0:02:58]} 10. Qxd3 {[%clk 0:03:01]}  Nf6 {[%clk 0:02:58]} 11. Bd2 {[%clk 0:02:59]}  Nbd7 {[%clk 0:02:58]} 12. O-O-O {[%clk 0:02:59]}  Be7 {[%clk 0:02:58]} 13. Ne4 {[%clk 0:02:57]}  Nxe4 {[%clk 0:02:59]} 14. Qxe4 {[%clk 0:02:58]}  Nf6 {[%clk 0:03:00]} 15. Qe2 {[%clk 0:02:57]}  Qd5 {[%clk 0:03:00]} 16. c4 {[%clk 0:02:56]}  Qe4 {[%clk 0:03:01]} 17. Qxe4 {[%clk 0:02:57]}  Nxe4 {[%clk 0:03:02]} 18. Be1 {[%clk 0:02:57]}  f5 {[%clk 0:03:02]} 19. Ne5 {[%clk 0:02:51]}  O-O-O {[%clk 0:02:55]} 20. Nf7 {[%clk 0:02:48]}  Nd6 {[%clk 0:02:42]} 21. Nxd8 {[%clk 0:02:29]}  Rxd8 {[%clk 0:02:41]} 22. b3 {[%clk 0:02:29]}  b5 {[%clk 0:02:40]} 23. cxb5 {[%clk 0:02:24]}  Nxb5 {[%clk 0:02:39]} 24. f3 {[%clk 0:02:23]}  Nxd4 {[%clk 0:02:39]} 25. Bc3 {[%clk 0:02:18]}  Bf6 {[%clk 0:02:27]} 26. Kb2 {[%clk 0:02:16]}  c5 {[%clk 0:02:24]} 27. Rhe1 {[%clk 0:02:16]}  Rd6 {[%clk 0:02:17]} 28. Bxd4 {[%clk 0:02:09]}  Bxd4+ {[%clk 0:02:10]} 29. Kc2 {[%clk 0:02:09]}  e5 {[%clk 0:02:08]} 30. g3 {[%clk 0:02:02]}  Kd7 {[%clk 0:02:07]} 31. g4 {[%clk 0:01:31]}  Ke6 {[%clk 0:01:37]} 32. gxf5+ {[%clk 0:01:22]}  Kxf5 {[%clk 0:01:37]} 33. Re4 {[%clk 0:01:21]}  Ra6 {[%clk 0:01:37]} 34. a4 {[%clk 0:01:19]}  c4 {[%clk 0:01:35]} 35. bxc4 {[%clk 0:01:15]}  Rxa4 {[%clk 0:01:34]} 36. Kb3 {[%clk 0:01:16]}  Ra6 {[%clk 0:01:32]} 37. Rg4 {[%clk 0:01:16]}  Rb6+ {[%clk 0:01:31]} 38. Ka4 {[%clk 0:01:14]}  Ra6+ {[%clk 0:01:29]} 39. Kb5 {[%clk 0:01:08]}  Rb6+ {[%clk 0:01:29]} 40. Ka5 {[%clk 0:01:08]}  Rb3 {[%clk 0:01:30]} 41. Rxg7 {[%clk 0:01:01]}  Rxf3 {[%clk 0:01:12]} 42. Rf7+ {[%clk 0:00:56]}  Kg4 {[%clk 0:01:12]} 43. Rg7+ {[%clk 0:00:35]}  Kf4 {[%clk 0:01:09]} 44. Kb5 {[%clk 0:00:32]}  Rb3+ {[%clk 0:01:07]} 45. Kc6 {[%clk 0:00:33]}  Rh3 {[%clk 0:00:41]} 46. Kd5 {[%clk 0:00:30]}  Rxh5 {[%clk 0:00:38]} 47. c5 {[%clk 0:00:25]}  Rh2 {[%clk 0:00:25]} 48. c6 {[%clk 0:00:22]}  Rc2 {[%clk 0:00:25]} 49. Rf1+ {[%clk 0:00:19]}  Ke3 {[%clk 0:00:24]} 50. Rg3+ {[%clk 0:00:19]}  Ke2 {[%clk 0:00:19]} 51. Rg2+ {[%clk 0:00:15]}  Kxf1 {[%clk 0:00:20]} 52. Rxc2 {[%clk 0:00:16]}  Bb6 {[%clk 0:00:20]} 53. c7 {[%clk 0:00:14]}  Bxc7 {[%clk 0:00:20]} 54. Rxc7 {[%clk 0:00:15]}  h5 {[%clk 0:00:21]} 55. Rh7 {[%clk 0:00:15]}  a5 {[%clk 0:00:20]} 56. Rxh5 {[%clk 0:00:15]}  a4 {[%clk 0:00:21]} 57. Rh4 {[%clk 0:00:16]}  a3 {[%clk 0:00:21]} 58. Ra4 {[%clk 0:00:16]} 1-0


[Site "https://www.chess.com"]

[Event "Titled Tuesday Blitz November 9 2021"]
[White "Barbosa, Evandro Amorim"]
[Black "Ostrovskiy, Aleksandr"]
[WhiteFideId "2115824"]
[BlackFideId "2034239"]
[WhiteElo "2454"]
[BlackElo "2340"]
[Result "0-1"]
[Round "03"]
[TimeControl "180+1"]
[Date "2021.11.09"]
[WhiteClock "0:00:01"]
[BlackClock "0:00:03"]

1. e4 {[%clk 0:03:00]}  d5 {[%clk 0:02:59]} 2. exd5 {[%clk 0:03:00]}  Nf6 {[%clk 0:03:00]} 3. Nf3 {[%clk 0:02:59]}  Bg4 {[%clk 0:02:59]} 4. Be2 {[%clk 0:02:57]}  Qxd5 {[%clk 0:02:58]} 5. h3 {[%clk 0:02:55]}  Bh5 {[%clk 0:02:48]} 6. O-O {[%clk 0:02:52]}  Nc6 {[%clk 0:02:47]} 7. c4 {[%clk 0:02:48]}  Qd7 {[%clk 0:02:41]} 8. d4 {[%clk 0:02:47]}  Bxf3 {[%clk 0:02:29]} 9. Bxf3 {[%clk 0:02:47]}  Nxd4 {[%clk 0:02:29]} 10. Bxb7 {[%clk 0:02:44]}  Rd8 {[%clk 0:02:28]} 11. Be3 {[%clk 0:02:40]}  e5 {[%clk 0:02:10]} 12. Bxd4 {[%clk 0:02:34]}  exd4 {[%clk 0:02:10]} 13. Qf3 {[%clk 0:02:32]}  Qe6 {[%clk 0:01:30]} 14. Nd2 {[%clk 0:02:27]}  Be7 {[%clk 0:01:22]} 15. Rfe1 {[%clk 0:02:22]}  Qd6 {[%clk 0:01:10]} 16. c5 {[%clk 0:02:15]}  Qxc5 {[%clk 0:01:06]} 17. Rac1 {[%clk 0:02:14]}  Qb4 {[%clk 0:00:56]} 18. Bc6+ {[%clk 0:01:29]}  Kf8 {[%clk 0:00:55]} 19. Ne4 {[%clk 0:01:08]}  h5 {[%clk 0:00:45]} 20. Ng5 {[%clk 0:00:50]}  d3 {[%clk 0:00:36]} 21. Red1 {[%clk 0:00:46]}  d2 {[%clk 0:00:33]} 22. Rc2 {[%clk 0:00:40]}  Qh4 {[%clk 0:00:18]} 23. Ne4 {[%clk 0:00:32]}  Nxe4 {[%clk 0:00:16]} 24. Bxe4 {[%clk 0:00:33]}  Qg5 {[%clk 0:00:12]} 25. Rxc7 {[%clk 0:00:28]}  Rh6 {[%clk 0:00:11]} 26. Bc2 {[%clk 0:00:21]}  Rf6 {[%clk 0:00:09]} 27. Qe2 {[%clk 0:00:17]}  Bc5 {[%clk 0:00:04]} 28. Rf1 {[%clk 0:00:07]}  Bd6 {[%clk 0:00:02]} 29. Rb7 {[%clk 0:00:06]}  Qf4 {[%clk 0:00:03]} 30. g3 {[%clk 0:00:06]}  Qg5 {[%clk 0:00:02]} 31. h4 {[%clk 0:00:04]}  Qg4 {[%clk 0:00:01]} 32. Qxg4 {[%clk 0:00:03]}  hxg4 {[%clk 0:00:02]} 33. Bb3 {[%clk 0:00:02]}  Bc5 {[%clk 0:00:02]} 34. Kg2 {[%clk 0:00:01]}  Bb6 {[%clk 0:00:03]} 0-1


[Site "https://www.chess.com"]

[Event "Titled Tuesday Blitz November 9 2021"]
[White "Bellahcene, Bilel"]
[Black "Obregon, Andres Carlos"]
[WhiteFideId "696358"]
[BlackFideId "111724"]
[WhiteElo "2493"]
[BlackElo "2572"]
[Result "0-1"]
[Round "03"]
[TimeControl "180+1"]
[Date "2021.11.09"]
[WhiteClock "0:00:51"]
[BlackClock "0:01:08"]

1. e4 {[%clk 0:02:59]}  c5 {[%clk 0:02:57]} 2. Nf3 {[%clk 0:02:58]}  e6 {[%clk 0:02:55]} 3. d4 {[%clk 0:02:58]}  cxd4 {[%clk 0:02:53]} 4. Nxd4 {[%clk 0:02:59]}  Nc6 {[%clk 0:02:52]} 5. Nc3 {[%clk 0:02:59]}  Nf6 {[%clk 0:02:48]} 6. Ndb5 {[%clk 0:02:53]}  d6 {[%clk 0:02:42]} 7. Bf4 {[%clk 0:02:53]}  e5 {[%clk 0:02:40]} 8. Bg5 {[%clk 0:02:54]}  a6 {[%clk 0:02:37]} 9. Na3 {[%clk 0:02:54]}  b5 {[%clk 0:02:34]} 10. Nd5 {[%clk 0:02:53]}  Be7 {[%clk 0:02:31]} 11. Bxf6 {[%clk 0:02:54]}  Bxf6 {[%clk 0:02:30]} 12. c3 {[%clk 0:02:54]}  O-O {[%clk 0:02:26]} 13. Nc2 {[%clk 0:02:54]}  Bg5 {[%clk 0:02:23]} 14. Be2 {[%clk 0:02:50]}  Rb8 {[%clk 0:02:18]} 15. O-O {[%clk 0:02:50]}  a5 {[%clk 0:02:16]} 16. a3 {[%clk 0:02:46]}  Ne7 {[%clk 0:02:13]} 17. Nce3 {[%clk 0:02:45]}  Be6 {[%clk 0:02:10]} 18. Nxe7+ {[%clk 0:02:44]}  Qxe7 {[%clk 0:02:08]} 19. Nd5 {[%clk 0:02:45]}  Qb7 {[%clk 0:02:05]} 20. g3 {[%clk 0:02:41]}  f5 {[%clk 0:02:03]} 21. Bf3 {[%clk 0:02:38]}  Bxd5 {[%clk 0:02:00]} 22. Qxd5+ {[%clk 0:02:37]}  Qxd5 {[%clk 0:01:59]} 23. exd5 {[%clk 0:02:38]}  Rfc8 {[%clk 0:01:51]} 24. h4 {[%clk 0:02:36]}  Bh6 {[%clk 0:01:50]} 25. Be2 {[%clk 0:02:31]}  Rc5 {[%clk 0:01:48]} 26. Rfd1 {[%clk 0:02:31]}  Kf7 {[%clk 0:01:40]} 27. Kg2 {[%clk 0:02:30]}  g6 {[%clk 0:01:40]} 28. h5 {[%clk 0:02:29]}  Kf6 {[%clk 0:01:37]} 29. hxg6 {[%clk 0:02:13]}  hxg6 {[%clk 0:01:37]} 30. Rh1 {[%clk 0:02:10]}  Kg7 {[%clk 0:01:34]} 31. Rad1 {[%clk 0:02:04]}  b4 {[%clk 0:01:34]} 32. axb4 {[%clk 0:02:04]}  axb4 {[%clk 0:01:34]} 33. c4 {[%clk 0:02:05]}  Ra8 {[%clk 0:01:32]} 34. Ra1 {[%clk 0:02:04]}  Rca5 {[%clk 0:01:31]} 35. Rxa5 {[%clk 0:02:03]}  Rxa5 {[%clk 0:01:32]} 36. g4 {[%clk 0:01:59]}  Bf4 {[%clk 0:01:31]} 37. gxf5 {[%clk 0:01:58]}  gxf5 {[%clk 0:01:31]} 38. Rh3 {[%clk 0:01:33]}  e4 {[%clk 0:01:24]} 39. Rb3 {[%clk 0:01:32]}  Bd2 {[%clk 0:01:24]} 40. Rh3 {[%clk 0:01:26]}  Ra2 {[%clk 0:01:22]} 41. b3 {[%clk 0:01:25]}  Rb2 {[%clk 0:01:19]} 42. Bh5 {[%clk 0:01:16]}  Bf4 {[%clk 0:01:16]} 43. Kf1 {[%clk 0:01:00]}  Be5 {[%clk 0:01:16]} 44. Be8 {[%clk 0:00:55]}  Bd4 {[%clk 0:01:13]} 45. Rh2 {[%clk 0:00:51]}  f4 {[%clk 0:01:08]} 0-1


[Site "https://www.chess.com"]